[Event "Live Chess"]
[Site "Chess.com"]
[Date "2024.06.02"]
[Round "-"]
[White "friarnator"]
[Black "upoe610"]
[Result "0-1"]
[WhiteElo "2185"]
[BlackElo "2145"]
[TimeControl "300"]
[EndTime "5:09:26 PDT"]
[Termination "upoe610 won by resignation"]

1. d4 {[%clk 0:04:57.8]} 1... Nf6 {[%clk 0:04:59]} 2. Nc3 {[%clk 0:04:56.6]}
2... d5 {[%clk 0:04:56.2]} 3. Bf4 {[%clk 0:04:55.4]} 3... c5 {[%clk 0:04:49.1]}
4. e3 {[%clk 0:04:54.2]} 4... e6 {[%clk 0:04:45.9]} 5. Nb5 {[%clk 0:04:49.1]}
5... Na6 {[%clk 0:04:44.2]} 6. Nf3 {[%clk 0:04:44.6]} 6... Be7 {[%clk
0:04:42.3]} 7. Be2 {[%clk 0:04:43]} 7... O-O {[%clk 0:04:40.5]} 8. O-O {[%clk
0:04:41.5]} 8... Ne4 {[%clk 0:04:38.6]} 9. a4 {[%clk 0:04:35.8]} 9... cxd4
{[%clk 0:04:37.6]} 10. exd4 {[%clk 0:04:33.7]} 10... Nd6 {[%clk 0:04:36.5]} 11.
Nxd6 {[%clk 0:04:28.6]} 11... Bxd6 {[%clk 0:04:35.4]} 12. Bxd6 {[%clk
0:04:27.4]} 12... Qxd6 {[%clk 0:04:34.2]} 13. c3 {[%clk 0:04:25.5]} 13... Nb8
{[%clk 0:04:32.5]} 14. Bd3 {[%clk 0:04:14.2]} 14... Nc6 {[%clk 0:04:31.3]} 15.
Re1 {[%clk 0:04:13.7]} 15... a5 {[%clk 0:04:30.2]} 16. Ne5 {[%clk 0:04:07.1]}
16... Nxe5 {[%clk 0:04:23.7]} 17. dxe5 {[%clk 0:04:07]} 17... Qe7 {[%clk
0:04:22.9]} 18. Qh5 {[%clk 0:04:03.2]} 18... g6 {[%clk 0:04:21]} 19. Qh6 {[%clk
0:04:01]} 19... b6 {[%clk 0:04:20.4]} 20. Re3 {[%clk 0:03:59.5]} 20... Ba6
{[%clk 0:04:13.6]} 21. Rh3 {[%clk 0:03:52.8]} 21... f5 {[%clk 0:04:12]} 22. exf6
{[%clk 0:03:42.2]} 22... Rxf6 {[%clk 0:04:10.5]} 23. Bxa6 {[%clk 0:03:38.5]}
23... Rxa6 {[%clk 0:04:09.2]} 24. Rg3 {[%clk 0:03:35]} 24... Ra8 {[%clk
0:04:07.2]} 25. h4 {[%clk 0:03:32.4]} 25... Raf8 {[%clk 0:04:05.5]} 26. h5
{[%clk 0:03:30.7]} 26... Qg7 {[%clk 0:04:02.5]} 27. Qxg7+ {[%clk 0:03:21.7]}
27... Kxg7 {[%clk 0:04:01.2]} 28. Rf1 {[%clk 0:03:17.3]} 28... e5 {[%clk
0:03:58.9]} 29. Rg5 {[%clk 0:03:14.9]} 29... Rf5 {[%clk 0:03:57.1]} 30. Rxf5
{[%clk 0:03:09.9]} 30... Rxf5 {[%clk 0:03:57]} 31. hxg6 {[%clk 0:03:08.4]} 31...
hxg6 {[%clk 0:03:55.3]} 32. Rd1 {[%clk 0:03:07]} 32... e4 {[%clk 0:03:54.3]} 33.
b4 {[%clk 0:03:01.8]} 33... Kf6 {[%clk 0:03:50]} 34. bxa5 {[%clk 0:03:00]} 34...
bxa5 {[%clk 0:03:49.9]} 35. Rb1 {[%clk 0:02:59.4]} 35... Ke6 {[%clk 0:03:34.7]}
36. Rb6+ {[%clk 0:02:50.1]} 36... Kd7 {[%clk 0:03:26.4]} 37. Rxg6 {[%clk
0:02:48.2]} 37... d4 {[%clk 0:03:23.8]} 38. cxd4 {[%clk 0:02:44.1]} 38... Rd5
{[%clk 0:03:23.3]} 39. Ra6 {[%clk 0:02:40.8]} 39... Kc7 {[%clk 0:03:21.7]} 40.
Kf1 {[%clk 0:02:35.1]} 40... Kb7 {[%clk 0:03:20.8]} 41. Re6 {[%clk 0:02:26.9]}
41... Rxd4 {[%clk 0:03:19.9]} 42. g4 {[%clk 0:02:26.5]} 42... Rxa4 {[%clk
0:03:18.6]} 43. g5 {[%clk 0:02:26]} 43... Ra1+ {[%clk 0:03:14.2]} 44. Ke2 {[%clk
0:02:22.9]} 44... Rg1 {[%clk 0:03:11.8]} 45. g6 {[%clk 0:02:16.5]} 45... a4
{[%clk 0:03:07]} 46. Rxe4 {[%clk 0:02:13.9]} 46... a3 {[%clk 0:02:58]} 47. Re7+
{[%clk 0:01:57.2]} 47... Kb6 {[%clk 0:02:53.1]} 48. g7 {[%clk 0:01:56.7]} 48...
a2 {[%clk 0:02:52]} 49. Re8 {[%clk 0:01:46.1]} 49... a1=Q {[%clk 0:02:46.8]} 50.
g8=Q {[%clk 0:01:42.7]} 50... Rxg8 {[%clk 0:02:45.1]} 51. Rxg8 {[%clk
0:01:41.7]} 51... Qa2+ {[%clk 0:02:44.6]} 0-1

[Event "Live Chess"]
[Site "Chess.com"]
[Date "2024.06.02"]
[Round "-"]
[White "gobbles19"]
[Black "FlyingChessKestrel13"]
[Result "1-0"]
[WhiteElo "2254"]
[BlackElo "2072"]
[TimeControl "300"]
[EndTime "5:10:01 PDT"]
[Termination "gobbles19 won by resignation"]

1. e4 {[%clk 0:04:57.1]} 1... c5 {[%clk 0:04:58.1]} 2. d4 {[%clk 0:04:56]} 2...
cxd4 {[%clk 0:04:56.7]} 3. c3 {[%clk 0:04:55.2]} 3... dxc3 {[%clk 0:04:56]} 4.
Nxc3 {[%clk 0:04:55.1]} 4... e6 {[%clk 0:04:55.5]} 5. Bc4 {[%clk 0:04:54.7]}
5... d6 {[%clk 0:04:54.6]} 6. Nf3 {[%clk 0:04:54.1]} 6... Be7 {[%clk 0:04:53.2]}
7. O-O {[%clk 0:04:52.4]} 7... Nc6 {[%clk 0:04:52]} 8. Qe2 {[%clk 0:04:51.7]}
8... Nf6 {[%clk 0:04:51.3]} 9. Rd1 {[%clk 0:04:50.4]} 9... Qc7 {[%clk
0:04:47.9]} 10. h3 {[%clk 0:04:46.5]} 10... a6 {[%clk 0:04:47]} 11. Bf4 {[%clk
0:04:44.4]} 11... O-O {[%clk 0:04:40.7]} 12. Rac1 {[%clk 0:04:41.6]} 12... Bd7
{[%clk 0:04:38.3]} 13. Bb3 {[%clk 0:04:40.2]} 13... e5 {[%clk 0:04:35.4]} 14.
Bg5 {[%clk 0:04:38.5]} 14... Be6 {[%clk 0:04:34.3]} 15. Bxe6 {[%clk 0:04:19]}
15... fxe6 {[%clk 0:04:31.1]} 16. Qc4 {[%clk 0:04:16]} 16... Qd7 {[%clk
0:04:28]} 17. Bxf6 {[%clk 0:04:05.4]} 17... Rxf6 {[%clk 0:04:21]} 18. Na4 {[%clk
0:04:00.9]} 18... Raf8 {[%clk 0:04:16.1]} 19. Nb6 {[%clk 0:03:55.4]} 19... Qc7
{[%clk 0:04:12.9]} 20. Nd5 {[%clk 0:03:44.9]} 20... exd5 {[%clk 0:03:58.9]} 21.
exd5 {[%clk 0:03:44.8]} 21... Kh8 {[%clk 0:03:57.2]} 22. dxc6 {[%clk 0:03:42.5]}
22... bxc6 {[%clk 0:03:55]} 23. Rc2 {[%clk 0:03:34.7]} 23... c5 {[%clk
0:03:45.9]} 24. Qxa6 {[%clk 0:03:29.4]} 24... d5 {[%clk 0:03:34.9]} 25. Qa4
{[%clk 0:03:06]} 25... e4 {[%clk 0:03:33.4]} 26. Nh2 {[%clk 0:02:44.3]} 26...
Rf5 {[%clk 0:02:46.7]} 27. Ng4 {[%clk 0:02:32.4]} 27... Bg5 {[%clk 0:02:21.6]}
28. Qb5 {[%clk 0:02:22.6]} 28... h5 {[%clk 0:02:15.5]} 29. Rxc5 {[%clk
0:01:34.9]} 29... Qf4 {[%clk 0:02:08.5]} 30. Rdxd5 {[%clk 0:01:32.1]} 30... Rxd5
{[%clk 0:02:01.9]} 31. Rxd5 {[%clk 0:01:31.1]} 31... hxg4 {[%clk 0:02:00.1]} 32.
Rxg5 {[%clk 0:01:29.1]} 32... Qxf2+ {[%clk 0:01:57.6]} 33. Kh2 {[%clk
0:01:24.7]} 33... Qf4+ {[%clk 0:01:56.5]} 34. Kg1 {[%clk 0:01:22.5]} 34... Qf2+
{[%clk 0:01:41.4]} 35. Kh1 {[%clk 0:01:19.1]} 35... Qf1+ {[%clk 0:01:07.9]} 36.
Qxf1 {[%clk 0:01:15.3]} 36... Rxf1+ {[%clk 0:01:07.8]} 37. Kh2 {[%clk
0:01:14.6]} 37... gxh3 {[%clk 0:01:07.1]} 38. Kxh3 {[%clk 0:01:11.9]} 38... Rf2
{[%clk 0:01:05.3]} 39. Rb5 {[%clk 0:01:07.3]} 39... e3 {[%clk 0:01:02.4]} 40.
Kg3 {[%clk 0:01:05.9]} 40... Kg8 {[%clk 0:01:00.5]} 41. a4 {[%clk 0:01:02]}
41... Kf7 {[%clk 0:00:57.9]} 42. a5 {[%clk 0:01:00.7]} 42... Rf6 {[%clk
0:00:55.7]} 43. Re5 {[%clk 0:00:57.1]} 43... Ra6 {[%clk 0:00:53.5]} 44. Kf3
{[%clk 0:00:54.9]} 44... Kf6 {[%clk 0:00:52.9]} 45. Rb5 {[%clk 0:00:52.3]} 45...
Ke7 {[%clk 0:00:47.7]} 46. Kxe3 {[%clk 0:00:50.7]} 46... Kd7 {[%clk 0:00:47.3]}
47. Kd4 {[%clk 0:00:48.9]} 47... Kc6 {[%clk 0:00:44.8]} 48. Rc5+ {[%clk
0:00:46.7]} 48... Kd6 {[%clk 0:00:43.8]} 49. Rg5 {[%clk 0:00:45.1]} 49... Ra7
{[%clk 0:00:40.6]} 50. Rg6+ {[%clk 0:00:43.5]} 1-0

[Event "Live Chess"]
[Site "Chess.com"]
[Date "2024.06.02"]
[Round "-"]
[White "vincents82"]
[Black "BearFromUkraine"]
[Result "1-0"]
[WhiteElo "1994"]
[BlackElo "988"]
[TimeControl "300"]
[EndTime "5:10:09 PDT"]
[Termination "vincents82 won by resignation"]

1. e4 {[%clk 0:04:56.8]} 1... e5 {[%clk 0:04:57.9]} 2. Nf3 {[%clk 0:04:53.3]}
2... Nc6 {[%clk 0:04:56.9]} 3. Bb5 {[%clk 0:04:51.5]} 3... a6 {[%clk 0:04:55.7]}
4. Ba4 {[%clk 0:04:50.2]} 4... b5 {[%clk 0:04:54.6]} 5. Bb3 {[%clk 0:04:47.6]}
5... h6 {[%clk 0:04:49.2]} 6. O-O {[%clk 0:04:45]} 6... Bc5 {[%clk 0:04:46.8]}
7. Re1 {[%clk 0:04:42.9]} 7... Nf6 {[%clk 0:04:45.5]} 8. d3 {[%clk 0:04:39.4]}
8... d6 {[%clk 0:04:44.5]} 9. c3 {[%clk 0:04:31.7]} 9... O-O {[%clk 0:04:39.8]}
10. Nbd2 {[%clk 0:04:29.7]} 10... Qe7 {[%clk 0:04:31.1]} 11. Nf1 {[%clk
0:04:26.4]} 11... Be6 {[%clk 0:04:26.6]} 12. Bc2 {[%clk 0:04:24.8]} 12... Bg4
{[%clk 0:04:02.1]} 13. h3 {[%clk 0:04:23.6]} 13... Bxf3 {[%clk 0:04:00.6]} 14.
Qxf3 {[%clk 0:04:22.2]} 14... Rad8 {[%clk 0:03:54.3]} 15. Ng3 {[%clk 0:04:18.3]}
15... d5 {[%clk 0:03:49.8]} 16. Nf5 {[%clk 0:04:16.2]} 16... d4 {[%clk
0:03:46.2]} 17. Nxe7+ {[%clk 0:04:14]} 1-0

[Event "Live Chess"]
[Site "Chess.com"]
[Date "2024.06.02"]
[Round "-"]
[White "missedJariChance"]
[Black "RichardABates"]
[Result "0-1"]
[WhiteElo "1360"]
[BlackElo "2340"]
[TimeControl "300"]
[EndTime "5:10:32 PDT"]
[Termination "RichardABates won by resignation"]

1. b3 {[%clk 0:04:54.8]} 1... g6 {[%clk 0:04:57]} 2. Bb2 {[%clk 0:04:53.3]} 2...
Nf6 {[%clk 0:04:55.6]} 3. e3 {[%clk 0:04:48.9]} 3... Bg7 {[%clk 0:04:54.1]} 4.
Nf3 {[%clk 0:04:47.4]} 4... O-O {[%clk 0:04:52.6]} 5. Be2 {[%clk 0:04:46.2]}
5... d6 {[%clk 0:04:50.7]} 6. O-O {[%clk 0:04:44.9]} 6... e5 {[%clk 0:04:49.4]}
7. d3 {[%clk 0:04:38]} 7... Nbd7 {[%clk 0:04:43.3]} 8. Nbd2 {[%clk 0:04:35.8]}
8... Re8 {[%clk 0:04:41.6]} 9. Re1 {[%clk 0:04:29.2]} 9... d5 {[%clk 0:04:39.5]}
10. c4 {[%clk 0:04:08.9]} 10... e4 {[%clk 0:04:35.1]} 11. dxe4 {[%clk
0:04:05.8]} 11... dxe4 {[%clk 0:04:33.7]} 12. Nd4 {[%clk 0:03:59.4]} 12... Ne5
{[%clk 0:04:32.1]} 13. Qc2 {[%clk 0:03:43.3]} 13... Bg4 {[%clk 0:04:08]} 14.
Bxg4 {[%clk 0:03:29.6]} 14... Nexg4 {[%clk 0:04:05.6]} 15. h3 {[%clk 0:03:22.3]}
15... Ne5 {[%clk 0:03:55.3]} 16. Nxe4 {[%clk 0:03:02.4]} 16... Nxe4 {[%clk
0:03:52.6]} 17. Qxe4 {[%clk 0:03:00]} 17... Nxc4 {[%clk 0:03:51.3]} 18. Qc2
{[%clk 0:02:56.7]} 18... Nxb2 {[%clk 0:03:50]} 19. Qxb2 {[%clk 0:02:52.7]} 19...
c5 {[%clk 0:03:48.6]} 0-1

[Event "Live Chess"]
[Site "Chess.com"]
[Date "2024.06.02"]
[Round "-"]
[White "KeithArkell"]
[Black "Ferrarifan27"]
[Result "0-1"]
[WhiteElo "2418"]
[BlackElo "2166"]
[TimeControl "300"]
[EndTime "5:11:01 PDT"]
[Termination "Ferrarifan27 won by resignation"]

1. d4 {[%clk 0:04:57.3]} 1... e5 {[%clk 0:04:56.9]} 2. dxe5 {[%clk 0:04:53.9]}
2... d6 {[%clk 0:04:56.1]} 3. Nf3 {[%clk 0:04:51.7]} 3... Nc6 {[%clk 0:04:52.8]}
4. Nc3 {[%clk 0:04:50.2]} 4... Be7 {[%clk 0:04:50.2]} 5. exd6 {[%clk 0:04:48.8]}
5... Bxd6 {[%clk 0:04:49]} 6. Ne4 {[%clk 0:04:47.4]} 6... Bb4+ {[%clk
0:04:43.7]} 7. Bd2 {[%clk 0:04:42.1]} 7... Qe7 {[%clk 0:04:40.7]} 8. Nc3 {[%clk
0:04:32.2]} 8... Nf6 {[%clk 0:04:36.4]} 9. a3 {[%clk 0:04:31.1]} 9... Ba5 {[%clk
0:04:33.2]} 10. e3 {[%clk 0:04:30.4]} 10... O-O {[%clk 0:04:31.3]} 11. Bd3
{[%clk 0:04:28.5]} 11... Bg4 {[%clk 0:04:28.8]} 12. h3 {[%clk 0:04:27.8]} 12...
Bh5 {[%clk 0:04:27.1]} 13. O-O {[%clk 0:04:25.8]} 13... Rad8 {[%clk 0:04:23.3]}
14. b4 {[%clk 0:04:23.6]} 14... Bb6 {[%clk 0:04:21.9]} 15. Na4 {[%clk
0:04:22.7]} 15... Ne5 {[%clk 0:04:19.2]} 16. Nxb6 {[%clk 0:04:10.5]} 16... Nxf3+
{[%clk 0:04:10.7]} 17. gxf3 {[%clk 0:04:09.2]} 17... axb6 {[%clk 0:04:10]} 18.
Kh2 {[%clk 0:03:57.4]} 18... Qd6+ {[%clk 0:04:07.7]} 19. f4 {[%clk 0:03:56.5]}
19... Bxd1 {[%clk 0:04:00.9]} 20. Raxd1 {[%clk 0:03:55.3]} 20... Qe7 {[%clk
0:03:54.2]} 21. Bc3 {[%clk 0:03:54.1]} 21... Ne4 {[%clk 0:03:51.5]} 22. Bb2
{[%clk 0:03:51.4]} 22... Rfe8 {[%clk 0:03:47.3]} 23. Rg1 {[%clk 0:03:50.5]}
23... g6 {[%clk 0:03:46.4]} 24. Rdf1 {[%clk 0:03:47.8]} 24... c5 {[%clk
0:03:42.4]} 25. Be5 {[%clk 0:03:40.1]} 25... Nd2 {[%clk 0:03:39.7]} 0-1

[Event "Live Chess"]
[Site "Chess.com"]
[Date "2024.06.02"]
[Round "-"]
[White "upoe610"]
[Black "defenderalist"]
[Result "1-0"]
[WhiteElo "2146"]
[BlackElo "1543"]
[TimeControl "300"]
[EndTime "5:11:16 PDT"]
[Termination "upoe610 won by resignation"]

1. c4 {[%clk 0:04:55.8]} 1... e5 {[%clk 0:04:57.5]} 2. g3 {[%clk 0:04:54.7]}
2... Nf6 {[%clk 0:04:56.6]} 3. Bg2 {[%clk 0:04:53.1]} 3... d6 {[%clk 0:04:55.9]}
4. Nc3 {[%clk 0:04:51.4]} 4... Be6 {[%clk 0:04:55.2]} 5. d3 {[%clk 0:04:49.1]}
5... Nc6 {[%clk 0:04:52.6]} 6. Bg5 {[%clk 0:04:47.3]} 6... Qd7 {[%clk
0:04:50.1]} 7. Rb1 {[%clk 0:04:43.2]} 7... h6 {[%clk 0:04:45.3]} 8. Bxf6 {[%clk
0:04:40.8]} 8... gxf6 {[%clk 0:04:45.2]} 9. b4 {[%clk 0:04:40.3]} 9... Nd4
{[%clk 0:04:36.9]} 10. e3 {[%clk 0:04:34.1]} 10... Nf5 {[%clk 0:04:25.9]} 11. b5
{[%clk 0:04:30.4]} 11... Rb8 {[%clk 0:04:20.6]} 12. Qa4 {[%clk 0:04:27.7]} 12...
a6 {[%clk 0:04:11.7]} 13. bxa6 {[%clk 0:04:26.7]} 13... b6 {[%clk 0:04:10.8]}
14. Qxd7+ {[%clk 0:04:23.5]} 1-0

[Event "Live Chess"]
[Site "Chess.com"]
[Date "2024.06.02"]
[Round "-"]
[White "Duke_of_Bebington"]
[Black "CarmelJane"]
[Result "0-1"]
[WhiteElo "1627"]
[BlackElo "2033"]
[TimeControl "300"]
[EndTime "5:11:29 PDT"]
[Termination "CarmelJane won by resignation"]

1. e4 {[%clk 0:04:57.6]} 1... c5 {[%clk 0:04:55.3]} 2. Nf3 {[%clk 0:04:54.9]}
2... e6 {[%clk 0:04:54.8]} 3. c3 {[%clk 0:04:54]} 3... Nf6 {[%clk 0:04:53.3]} 4.
e5 {[%clk 0:04:52.2]} 4... Nd5 {[%clk 0:04:52.3]} 5. d4 {[%clk 0:04:51.7]} 5...
cxd4 {[%clk 0:04:51.1]} 6. cxd4 {[%clk 0:04:51.2]} 6... Nc6 {[%clk 0:04:50.2]}
7. Nc3 {[%clk 0:04:49.7]} 7... Nb6 {[%clk 0:04:47.7]} 8. Bb5 {[%clk 0:04:31.9]}
8... a6 {[%clk 0:04:36.6]} 9. Bxc6 {[%clk 0:04:27.2]} 9... dxc6 {[%clk 0:04:20]}
10. O-O {[%clk 0:04:23.1]} 10... Be7 {[%clk 0:04:16.1]} 11. Ne2 {[%clk
0:04:15.5]} 11... O-O {[%clk 0:04:04.5]} 12. Nf4 {[%clk 0:04:12.7]} 12... Nd5
{[%clk 0:03:52.3]} 13. Nxd5 {[%clk 0:04:11]} 13... Qxd5 {[%clk 0:03:52.2]} 14.
Be3 {[%clk 0:04:08.3]} 14... b6 {[%clk 0:03:38.3]} 15. a3 {[%clk 0:04:06.6]}
15... Bb7 {[%clk 0:03:37.5]} 16. Rc1 {[%clk 0:04:03.8]} 16... Rad8 {[%clk
0:03:34]} 17. Qe2 {[%clk 0:03:57.9]} 17... Qe4 {[%clk 0:03:29.2]} 18. Nd2 {[%clk
0:03:46.9]} 18... Qg6 {[%clk 0:03:25.3]} 19. f4 {[%clk 0:03:38.4]} 19... Rd7
{[%clk 0:02:48.2]} 20. Rf3 {[%clk 0:03:32.4]} 20... Qh5 {[%clk 0:02:28.5]} 21.
Qd3 {[%clk 0:03:09.6]} 21... c5 {[%clk 0:01:57.2]} 22. Rh3 {[%clk 0:03:03.5]}
22... Qg6 {[%clk 0:01:56.6]} 23. Qxg6 {[%clk 0:03:01.5]} 23... hxg6 {[%clk
0:01:54.8]} 24. dxc5 {[%clk 0:02:56.7]} 24... Bxc5 {[%clk 0:01:48.3]} 25. Nc4
{[%clk 0:02:50.7]} 25... Bxe3+ {[%clk 0:01:35.5]} 26. Rxe3 {[%clk 0:02:49.3]}
26... Rd4 {[%clk 0:01:23.4]} 27. Nd6 {[%clk 0:02:42]} 27... Bd5 {[%clk
0:01:18.4]} 28. g3 {[%clk 0:02:37.3]} 28... Rd2 {[%clk 0:01:17.1]} 29. Ne4
{[%clk 0:02:26.1]} 29... Rxb2 {[%clk 0:01:11.7]} 30. Nc3 {[%clk 0:02:25.1]}
30... Rd8 {[%clk 0:01:01.4]} 31. Na4 {[%clk 0:02:19.3]} 31... Rg2+ {[%clk
0:00:58.9]} 32. Kf1 {[%clk 0:02:18.1]} 32... Rxh2 {[%clk 0:00:57.9]} 33. Nxb6
{[%clk 0:02:17.4]} 33... Rh1+ {[%clk 0:00:56.6]} 34. Ke2 {[%clk 0:02:16]} 34...
Rxc1 {[%clk 0:00:56.5]} 35. Kd2 {[%clk 0:02:14.8]} 35... Rc5 {[%clk 0:00:53.9]}
36. Rd3 {[%clk 0:02:11.6]} 36... Rb5 {[%clk 0:00:51.1]} 37. Nxd5 {[%clk
0:02:09]} 37... Rdxd5 {[%clk 0:00:50.2]} 38. Rxd5 {[%clk 0:02:07.9]} 38... Rxd5+
{[%clk 0:00:50.1]} 39. Kc3 {[%clk 0:02:07]} 39... a5 {[%clk 0:00:48.6]} 40. a4
{[%clk 0:02:05.7]} 40... Kh7 {[%clk 0:00:47.3]} 41. g4 {[%clk 0:02:03.5]} 41...
g5 {[%clk 0:00:45.9]} 0-1

[Event "Live Chess"]
[Site "Chess.com"]
[Date "2024.06.02"]
[Round "-"]
[White "PureDashingOctopus"]
[Black "Tatarinov_Maxim"]
[Result "1-0"]
[WhiteElo "2289"]
[BlackElo "2286"]
[TimeControl "300"]
[EndTime "5:11:34 PDT"]
[Termination "PureDashingOctopus won by resignation"]

1. e4 {[%clk 0:04:57.2]} 1... g6 {[%clk 0:04:57.2]} 2. d4 {[%clk 0:04:56.2]}
2... Bg7 {[%clk 0:04:56.6]} 3. Nc3 {[%clk 0:04:55.6]} 3... d6 {[%clk 0:04:56.2]}
4. f3 {[%clk 0:04:54.5]} 4... Nf6 {[%clk 0:04:55.7]} 5. Be3 {[%clk 0:04:54]}
5... O-O {[%clk 0:04:55.2]} 6. Qd2 {[%clk 0:04:53.5]} 6... b6 {[%clk 0:04:50]}
7. O-O-O {[%clk 0:04:52.6]} 7... Nbd7 {[%clk 0:04:45.7]} 8. g4 {[%clk
0:04:50.6]} 8... c5 {[%clk 0:04:44.5]} 9. h4 {[%clk 0:04:46.1]} 9... cxd4 {[%clk
0:04:36.2]} 10. Bxd4 {[%clk 0:04:44.9]} 10... Nc5 {[%clk 0:04:36.1]} 11. h5
{[%clk 0:04:40.6]} 11... Ne6 {[%clk 0:04:30.2]} 12. hxg6 {[%clk 0:04:25.7]}
12... hxg6 {[%clk 0:04:21.5]} 13. Bxf6 {[%clk 0:04:23]} 13... exf6 {[%clk
0:04:20.3]} 14. Qh2 {[%clk 0:04:21.3]} 14... Re8 {[%clk 0:04:19.1]} 15. Rxd6
{[%clk 0:04:16.5]} 15... Qe7 {[%clk 0:04:15.5]} 16. Nd5 {[%clk 0:04:14.3]} 16...
Qb7 {[%clk 0:04:04.8]} 17. Bb5 {[%clk 0:04:12]} 17... Rd8 {[%clk 0:03:57.3]} 18.
Bc6 {[%clk 0:03:59.5]} 18... Qa6 {[%clk 0:03:48.8]} 19. Rxd8+ {[%clk 0:03:55.2]}
19... Nxd8 {[%clk 0:03:44.8]} 20. Bxa8 {[%clk 0:03:53.2]} 1-0

[Event "Live Chess"]
[Site "Chess.com"]
[Date "2024.06.02"]
[Round "-"]
[White "Queensandpawns"]
[Black "ZatixMajor"]
[Result "1-0"]
[WhiteElo "2267"]
[BlackElo "2032"]
[TimeControl "300"]
[EndTime "5:11:39 PDT"]
[Termination "Queensandpawns won by resignation"]

1. e4 {[%clk 0:04:59.8]} 1... c5 {[%clk 0:04:59.4]} 2. d4 {[%clk 0:04:59.1]}
2... cxd4 {[%clk 0:04:58.5]} 3. c3 {[%clk 0:04:59]} 3... g6 {[%clk 0:04:57.1]}
4. Qxd4 {[%clk 0:04:57.5]} 4... Nf6 {[%clk 0:04:55.2]} 5. Bg5 {[%clk 0:04:56.1]}
5... Nc6 {[%clk 0:04:53.7]} 6. Qa4 {[%clk 0:04:53.1]} 6... Bg7 {[%clk
0:04:50.6]} 7. Nf3 {[%clk 0:04:52.5]} 7... d5 {[%clk 0:04:45.2]} 8. exd5 {[%clk
0:04:48.6]} 8... Nxd5 {[%clk 0:04:45.1]} 9. Bb5 {[%clk 0:04:42.3]} 9... Bd7
{[%clk 0:04:43.9]} 10. O-O {[%clk 0:04:41.5]} 10... Nb6 {[%clk 0:04:42.8]} 11.
Qb3 {[%clk 0:04:40.5]} 11... O-O {[%clk 0:04:41.1]} 12. Re1 {[%clk 0:04:38.5]}
12... Re8 {[%clk 0:04:38.4]} 13. Nbd2 {[%clk 0:04:25.4]} 13... Na5 {[%clk
0:04:37.1]} 14. Qb4 {[%clk 0:04:10.2]} 14... Nd5 {[%clk 0:04:36.1]} 15. Qa4
{[%clk 0:04:06.5]} 15... Bxb5 {[%clk 0:04:28.8]} 16. Qxb5 {[%clk 0:04:06.4]}
16... a6 {[%clk 0:04:28.3]} 17. Qd3 {[%clk 0:04:00.4]} 17... Nf6 {[%clk
0:04:05.7]} 18. Qc2 {[%clk 0:03:57.4]} 18... h6 {[%clk 0:04:02.6]} 19. Bh4
{[%clk 0:03:55.3]} 19... Nd5 {[%clk 0:03:58.5]} 20. Rad1 {[%clk 0:03:53.8]}
20... Qc7 {[%clk 0:03:54.7]} 21. Bg3 {[%clk 0:03:53]} 21... Qb6 {[%clk
0:03:48.5]} 22. Ne4 {[%clk 0:03:46.7]} 22... Nf6 {[%clk 0:03:42.9]} 23. Be5
{[%clk 0:03:44]} 23... Nxe4 {[%clk 0:03:40.1]} 24. Qxe4 {[%clk 0:03:43.7]} 24...
Qxb2 {[%clk 0:03:31.6]} 25. Bxg7 {[%clk 0:03:42.3]} 25... Kxg7 {[%clk
0:03:28.2]} 26. Qe5+ {[%clk 0:03:42]} 26... Kg8 {[%clk 0:03:26.5]} 27. Qxa5
{[%clk 0:03:41.9]} 27... Rac8 {[%clk 0:03:24.5]} 28. Rb1 {[%clk 0:03:34.9]}
28... Qxc3 {[%clk 0:03:18.1]} 29. Qxc3 {[%clk 0:03:34.8]} 29... Rxc3 {[%clk
0:03:17.4]} 30. Rxb7 {[%clk 0:03:33.6]} 30... Rec8 {[%clk 0:03:15.3]} 31. Rbxe7
{[%clk 0:03:29.9]} 31... Rc2 {[%clk 0:03:14.6]} 32. R7e2 {[%clk 0:03:21.8]}
32... R8c3 {[%clk 0:03:07.5]} 33. Rxc2 {[%clk 0:03:16.4]} 33... Rxc2 {[%clk
0:03:06.3]} 34. a4 {[%clk 0:03:06.4]} 34... Rc4 {[%clk 0:03:01.7]} 35. Ra1
{[%clk 0:03:04]} 35... f5 {[%clk 0:02:59]} 36. Ne5 {[%clk 0:03:00]} 36... Rb4
{[%clk 0:02:57.5]} 37. Nxg6 {[%clk 0:02:59.4]} 37... Re4 {[%clk 0:02:52.5]} 38.
g3 {[%clk 0:02:56.4]} 38... Rb4 {[%clk 0:02:52.2]} 39. Ne7+ {[%clk 0:02:55.6]}
39... Kf7 {[%clk 0:02:47.3]} 40. Nxf5 {[%clk 0:02:55.5]} 40... Ke6 {[%clk
0:02:46.3]} 41. Nxh6 {[%clk 0:02:54.5]} 1-0